fUSD/lending_fUSD_20260418
["ID","MTS","AMOUNT","RATE_DAILY","PERIOD"]
[420716985,1776491295474,-10000.0,0.0004,120]
[420716986,1776491295551,-763.34523348,0.0004,120]
[420716987,1776491295626,-192.97185474,0.0004,120]
[420716988,1776491295700,-7082.0,0.0004,120]
[420716989,1776491295771,-1000.0,0.0004,120]
[420716990,1776491295849,-580.08,0.0004,120]
[420716991,1776491295924,-948.88,0.0004,120]
[420716992,1776491295998,-470.61,0.0004,120]
[420716993,1776491296070,-438.89,0.0004,120]
[420716994,1776491296142,-1267.03,0.0004,120]
[420716995,1776491296215,-723.56,0.0004,120]
[420716996,1776491296287,-382.16,0.0004,120]
[420716997,1776491296358,-151.57,0.0004,120]
[420716998,1776491296430,-209.18,0.0004,120]
[420716999,1776491296504,-320.51,0.0004,120]
[420717000,1776491296581,-294.7,0.00040032,120]
[420717001,1776491296659,-1215.65,0.0004012,120]
[420717002,1776491296732,-1202.812,0.000402,120]
[420717003,1776491296807,-1202.81,0.000402,120]
[420717004,1776491296880,-1436.417,0.000402,120]
[420717005,1776491296955,-1306.407,0.000402,120]
[420717006,1776491297030,-150.0,0.000405,120]
[420717007,1776491297104,-150.0,0.000405,120]
[420717008,1776491297179,-150.0,0.0004059,120]
[420717009,1776491297251,-150.0,0.0004059,120]
[420717010,1776491297323,-150.0,0.0004059,120]
[420717011,1776491297399,-150.0,0.0004059,120]
[420717012,1776491297475,-163.0,0.000406,120]
[420717013,1776491297553,-2116.11748818,0.00040804,120]
[420717014,1776491297632,-2116.11748818,0.0004085,120]
[420717015,1776491297712,-2116.11748818,0.0004085,120]
[420717016,1776491297790,-2116.11748818,0.0004085,120]
[420717017,1776491297868,-2116.11748818,0.0004085,120]
[420717018,1776491297948,-2116.11748818,0.0004085,120]
[420717019,1776491298027,-20000.0,0.00040956,120]
[420717020,1776491298103,-150.0,0.00041,120]
[420717021,1776491298178,-150.0,0.00041,120]
[420717022,1776491298253,-1358.44070726,0.00041,120]
[420717023,1776491298329,-20000.0,0.00041,120]
[420717024,1776491298406,-499.999999,0.00041095,120]
[420717025,1776491298484,-501.49358134,0.00041095,120]
[420717026,1776491298560,-504.06219869,0.00041095,120]
[420717027,1776491298637,-273.09174455,0.00041095,120]
[420717028,1776491298713,-624.859999,0.00041095,120]
[420717029,1776491298790,-1199.0,0.00041096,120]
[420717030,1776491298867,-151.0,0.00041096,120]
[420717031,1776491298945,-151.0,0.00041096,120]
[420717032,1776491299024,-151.0,0.00041096,120]
[420717033,1776491299100,-151.0,0.00041096,120]
[420717034,1776491299177,-151.0,0.00041096,120]
[420717035,1776491299254,-151.0,0.00041096,120]
[420717036,1776491299330,-151.0,0.00041096,120]
[420717037,1776491299407,-151.0,0.00041096,120]
[420717038,1776491299485,-151.0,0.00041096,120]
[420717039,1776491299565,-151.0,0.00041096,120]
[420717040,1776491299649,-151.0,0.00041096,120]
[420717041,1776491299727,-151.0,0.00041096,120]
[420717042,1776491299802,-151.0,0.00041096,120]
[420717043,1776491299880,-151.0,0.00041096,120]
[420717044,1776491299960,-151.0,0.00041096,120]
[420717045,1776491300042,-151.0,0.00041096,120]
[420717046,1776491300125,-151.0,0.00041096,120]
[420717047,1776491300202,-151.0,0.00041096,120]
[420717048,1776491300278,-297.467101,0.00041096,120]
[420717049,1776491300357,-10000.0,0.00041096,120]
[420717050,1776491300435,-163.0,0.000411,120]
[420717051,1776491300511,-15090.51939708,0.00041163,120]
[420717052,1776491300589,-1215.65,0.0004117,120]
[420717053,1776491300667,-153.64,0.00041193,120]
[420717054,1776491300743,-150.0,0.00041201,120]
[420717055,1776491300823,-359.42,0.00041221,120]
[420717056,1776491300904,-2116.11748818,0.00041229,120]
[420717057,1776491300983,-2116.11748818,0.00041243,120]
[420717058,1776491301057,-359.42,0.00041321,120]
[420717059,1776491301133,-1199.0,0.0004137,120]
[420717060,1776491301207,-2723.092,0.000414,120]
[420717061,1776491301282,-2723.092,0.000414,120]
[420717062,1776491301356,-2723.09,0.000414,120]
[420717063,1776491301431,-2723.09,0.000414,120]
[420717064,1776491301508,-359.42,0.00041421,120]
[420717065,1776491301827,-335.25,0.00041452,120]
[420717066,1776491301907,-200.74,0.00041452,120]
[420717067,1776491301983,-150.0,0.000415,120]
[420717068,1776491302062,-150.0,0.000415,120]
[420717069,1776491302145,-359.42,0.00041521,120]
[420717070,1776491302224,-331.30172604,0.00041521,120]
[420717071,1776491302307,-359.42,0.00041621,120]
[420717072,1776491302388,-1199.0,0.00041644,120]
[420717073,1776491302467,-378.67636278,0.00041647,120]
[420717074,1776491302548,-350.0,0.00041649,120]
[420717075,1776491302629,-350.0,0.00041649,120]
[420717076,1776491302709,-274.05751758,0.00041649,120]
[420717077,1776491302789,-300.0,0.00041649,120]
[420717078,1776491302871,-300.0,0.00041649,120]
[420717079,1776491302954,-300.0,0.00041649,120]
[420717080,1776491303035,-300.0,0.00041649,120]
[420717081,1776491303115,-371.5107394,0.00041649,120]
[420717082,1776491303192,-2116.11748818,0.00041668,120]
[420717083,1776491303269,-2116.11748818,0.00041668,120]
[420717084,1776491303347,-163.0,0.000417,120]
[420717085,1776491303425,-359.42,0.00041721,120]
[420717086,1776491303500,-3000.0,0.00041729,120]
[420717087,1776491303580,-150.0,0.00041764,120]
[420717088,1776491303658,-150.0,0.00041764,120]
[420717089,1776491303736,-155.74400329,0.00041774,120]
[420717090,1776491303816,-180.13991499,0.00041781,120]
[420717091,1776491303898,-166.39250321,0.00041781,120]
[420717092,1776491303978,-825.0,0.00041791,120]
[420717093,1776491304058,-359.42,0.00041821,120]
[420717094,1776491304136,-150.0,0.00041853,120]
[420717095,1776491304214,-200.0,0.00041878,120]
[420717096,1776491304289,-1199.0,0.00041918,120]
[420717097,1776491304365,-359.42,0.00041921,120]
[420717098,1776491304445,-150.0,0.00041921,120]
[420717100,1776491304527,-150.0,0.00041944,120]
[420717101,1776491304609,-320000.0,0.00042,120]
[420717102,1776491304688,-30000.0,0.00042,120]
[420717103,1776491304765,-30000.0,0.00042,120]
[420717104,1776491304842,-30000.0,0.00042,120]
[420717105,1776491304921,-30000.0,0.00042,120]
[420717106,1776491304999,-30000.0,0.00042,120]
[420717107,1776491305077,-30000.0,0.00042,120]
[420717108,1776491305155,-30000.0,0.00042,120]
[420717109,1776491305232,-30000.0,0.00042,120]
[420717110,1776491305308,-30000.0,0.00042,120]
[420717111,1776491305383,-44280.17495258,0.00042,120]
[420717112,1776491305459,-1000.0,0.00042,120]
[420717113,1776491305537,-1969126.30468179,0.00042,120]
[420717114,1776491305616,-20000.0,0.00042,120]
[420717115,1776491305693,-256.5039871,0.00042,120]
[420717116,1776491305769,-2247.32555173,0.00042,120]
[420717117,1776491305845,-150.0,0.00042,120]
[420717118,1776491305921,-150.0,0.00042,120]
[420717119,1776491305998,-171.09221748,0.00042,120]
[420717120,1776491306074,-538.05814948,0.00042,120]
[420717121,1776491306152,-160.0,0.00042,120]
[420717122,1776491306227,-11771.48171476,0.00042,120]
[420717123,1776491306305,-500.0,0.00042,120]
[420717124,1776491306381,-20000.0,0.00042,120]
[420717125,1776491306457,-300.0,0.00042,120]
[420717126,1776491306537,-359.42,0.00042021,120]
[420717127,1776491306617,-150.0,0.00042038,120]
[420717128,1776491306695,-150.0,0.00042038,120]
[420717129,1776491306771,-150.0,0.00042038,120]
[420717130,1776491306852,-2116.11748818,0.00042106,120]
[420717131,1776491306930,-2116.11748818,0.00042107,120]
[420717132,1776491307012,-359.42,0.00042121,120]
[420717133,1776491307090,-1215.65,0.0004216,120]
[420717134,1776491307165,-150.0,0.00042173,120]
[420717135,1776491307241,-1199.0,0.00042192,120]
[420717136,1776491307316,-163.0,0.000422,120]
[420717137,1776491307392,-10046.40945135,0.000422,120]
[420717138,1776491307470,-359.42,0.00042221,120]
[420717139,1776491307549,-150.0,0.00042312,120]
[420717140,1776491307629,-150.0,0.00042312,120]
[420717142,1776491307708,-150.0,0.00042312,120]
[420717143,1776491307789,-359.42,0.00042321,120]
[420717144,1776491307869,-359.42,0.00042421,120]
[420717145,1776491307949,-500.0,0.00042465,120]
[420717146,1776491308028,-2500.0,0.00042465,120]
[420717147,1776491308105,-2500.0,0.00042465,120]
[420717148,1776491308185,-2500.0,0.00042465,120]
[420717149,1776491308261,-2500.0,0.00042465,120]
[420717150,1776491308339,-2500.0,0.00042465,120]
[420717151,1776491308415,-2500.0,0.00042465,120]
[420717152,1776491308494,-2500.0,0.00042465,120]
[420717153,1776491308573,-2500.0,0.00042465,120]
[420717154,1776491308651,-2500.0,0.00042465,120]
[420717155,1776491308728,-2500.0,0.00042465,120]
[420717156,1776491308804,-2500.0,0.00042465,120]
[420717157,1776491308887,-2500.0,0.00042465,120]
[420717158,1776491308966,-2500.0,0.00042465,120]
[420717159,1776491309045,-2500.0,0.00042465,120]
[420717160,1776491309135,-2500.0,0.00042465,120]
[420717161,1776491309213,-2500.0,0.00042465,120]
[420717162,1776491309291,-2500.0,0.00042465,120]
[420717163,1776491309367,-2500.0,0.00042465,120]
[420717164,1776491309442,-2500.0,0.00042465,120]
[420717165,1776491309519,-2500.0,0.00042465,120]
[420717166,1776491309596,-2500.0,0.00042465,120]
[420717167,1776491309675,-1793.79304133,0.00042465,120]
[420717168,1776491309754,-1199.0,0.00042466,120]
[420717169,1776491309833,-279.386299,0.00042466,120]
[420717170,1776491309912,-524.895398,0.00042466,120]
[420717171,1776491310357,-524.895398,0.00042466,120]
[420717172,1776491310435,-524.895398,0.00042466,120]
[420717173,1776491310520,-524.895398,0.00042466,120]
[420717174,1776491310602,-524.895398,0.00042466,120]
[420717175,1776491310682,-524.895398,0.00042466,120]
[420717176,1776491310763,-524.895398,0.00042466,120]
[420717177,1776491310847,-524.895398,0.00042466,120]
[420717178,1776491310927,-524.895398,0.00042466,120]
[420717179,1776491311006,-524.895398,0.00042466,120]
[420717180,1776491311086,-524.895398,0.00042466,120]
[420717181,1776491311169,-524.895398,0.00042466,120]
[420717182,1776491311246,-524.895398,0.00042466,120]
[420717183,1776491311325,-524.895398,0.00042466,120]
[420717184,1776491311403,-524.895398,0.00042466,120]
[420717185,1776491311481,-524.895398,0.00042466,120]
[420717186,1776491311563,-524.895398,0.00042466,120]
[420717187,1776491311643,-524.895398,0.00042466,120]
[420717188,1776491311724,-524.895398,0.00042466,120]
[420717189,1776491311802,-524.895403,0.00042466,120]
[420717190,1776491311885,-251.28771,0.00042466,120]
[420717191,1776491311964,-251.28771,0.00042466,120]
[420717192,1776491312041,-251.28771,0.00042466,120]
[420717193,1776491312117,-251.28771,0.00042466,120]
[420717194,1776491312194,-251.28771,0.00042466,120]
[420717195,1776491312271,-251.28771,0.00042466,120]
[420717196,1776491312346,-251.28771,0.00042466,120]
[420717197,1776491312423,-251.28771,0.00042466,120]
[420717198,1776491312501,-251.28771,0.00042466,120]
[420717199,1776491312582,-251.28771,0.00042466,120]
[420717200,1776491312664,-251.28771,0.00042466,120]
[420717201,1776491312742,-251.28771,0.00042466,120]
[420717202,1776491312819,-251.28771,0.00042466,120]
[420717203,1776491312896,-251.28771,0.00042466,120]
[420717204,1776491312975,-251.28771,0.00042466,120]
[420717205,1776491313056,-251.28771,0.00042466,120]
[420717206,1776491313134,-251.28771,0.00042466,120]
[420717207,1776491313211,-251.28771,0.00042466,120]
[420717208,1776491313292,-251.28771,0.00042466,120]
[420717209,1776491313374,-251.28771,0.00042466,120]
[420717210,1776491313451,-151.0,0.00042466,120]
[420717211,1776491313531,-151.0,0.00042466,120]
[420717212,1776491313611,-151.0,0.00042466,120]
[420717213,1776491313692,-151.0,0.00042466,120]
[420717214,1776491313769,-157.061831,0.00042466,120]
[420717215,1776491313848,-485.030801,0.00042466,120]
[420717216,1776491313930,-485.030801,0.00042466,120]
[420717217,1776491314011,-485.030801,0.00042466,120]
[420717218,1776491314088,-485.030801,0.00042466,120]
[420717219,1776491314167,-485.030801,0.00042466,120]
[420717220,1776491314250,-485.030801,0.00042466,120]
[420717221,1776491314330,-485.030801,0.00042466,120]
[420717222,1776491314412,-485.030801,0.00042466,120]
[420717223,1776491314496,-485.030801,0.00042466,120]
[420717224,1776491314581,-485.030801,0.00042466,120]
[420717225,1776491314664,-485.030801,0.00042466,120]
[420717226,1776491314743,-485.030801,0.00042466,120]
[420717227,1776491314822,-485.030801,0.00042466,120]
[420717228,1776491314901,-485.030801,0.00042466,120]
[420717229,1776491314979,-485.030801,0.00042466,120]
[420717230,1776491315059,-485.030801,0.00042466,120]
[420717231,1776491315137,-151.0,0.00042466,120]
[420717232,1776491315217,-485.030801,0.00042466,120]
[420717233,1776491315298,-526.846015,0.00042466,120]
[420717234,1776491315378,-151.0,0.00042466,120]
[420717235,1776491315458,-485.030801,0.00042466,120]
[420717236,1776491315544,-526.846015,0.00042466,120]
[420717237,1776491315627,-151.0,0.00042466,120]
[420717238,1776491315708,-485.030801,0.00042466,120]
[420717239,1776491315790,-526.846015,0.00042466,120]
[420717240,1776491315871,-151.0,0.00042466,120]
[420717241,1776491315954,-485.030796,0.00042466,120]
[420717242,1776491316035,-526.846015,0.00042466,120]
[420717243,1776491316113,-151.0,0.00042466,120]
[420717244,1776491316195,-526.846015,0.00042466,120]
[420717245,1776491316276,-151.0,0.00042466,120]
[420717246,1776491316355,-526.846015,0.00042466,120]
[420717247,1776491316433,-151.0,0.00042466,120]
[420717248,1776491316515,-526.846015,0.00042466,120]
[420717249,1776491316597,-151.0,0.00042466,120]
[420717250,1776491316679,-280.652739,0.00042466,120]
[420717251,1776491316760,-526.846015,0.00042466,120]
[420717252,1776491316840,-526.846015,0.00042466,120]
[420717253,1776491316920,-382.727647,0.00042466,120]
[420717254,1776491317000,-526.846015,0.00042466,120]
[420717255,1776491317079,-382.727647,0.00042466,120]
[420717256,1776491317157,-526.846015,0.00042466,120]
[420717257,1776491317236,-382.727647,0.00042466,120]
[420717258,1776491317315,-526.846015,0.00042466,120]
[420717259,1776491317398,-382.727647,0.00042466,120]
[420717260,1776491317479,-526.846015,0.00042466,120]
[420717261,1776491317564,-382.727647,0.00042466,120]
[420717262,1776491317650,-526.846015,0.00042466,120]
[420717263,1776491317733,-382.727647,0.00042466,120]
[420717264,1776491317819,-526.846015,0.00042466,120]
[420717265,1776491317905,-382.727647,0.00042466,120]
[420717266,1776491317991,-526.846015,0.00042466,120]
[420717267,1776491318075,-382.727647,0.00042466,120]
[420717268,1776491318160,-526.846015,0.00042466,120]
[420717269,1776491318241,-382.727647,0.00042466,120]
[420717270,1776491318327,-382.727647,0.00042466,120]
[420717271,1776491318411,-526.846015,0.00042466,120]
[420717272,1776491318496,-382.727647,0.00042466,120]
[420717273,1776491318578,-526.846015,0.00042466,120]
[420717274,1776491318960,-526.846019,0.00042466,120]
[420717275,1776491319046,-382.727647,0.00042466,120]
[420717276,1776491319125,-382.727647,0.00042466,120]
[420717277,1776491319204,-636.926939,0.00042466,120]
[420717278,1776491319282,-382.727647,0.00042466,120]
[420717279,1776491319360,-636.926939,0.00042466,120]
[420717280,1776491319439,-382.727647,0.00042466,120]
[420717281,1776491319518,-636.926939,0.00042466,120]
[420717282,1776491319599,-382.727647,0.00042466,120]
[420717283,1776491319683,-636.926939,0.00042466,120]
[420717284,1776491319763,-382.727647,0.00042466,120]
[420717285,1776491319844,-636.926939,0.00042466,120]
[420717286,1776491319924,-382.727647,0.00042466,120]
[420717287,1776491320005,-636.926939,0.00042466,120]
[420717288,1776491320084,-382.727647,0.00042466,120]
[420717289,1776491320162,-636.926939,0.00042466,120]
[420717290,1776491320238,-382.72764,0.00042466,120]
[420717291,1776491320318,-636.926939,0.00042466,120]
[420717292,1776491320396,-151.0,0.00042466,120]
[420717293,1776491320476,-636.926939,0.00042466,120]
[420717294,1776491320558,-151.0,0.00042466,120]
[420717295,1776491320640,-636.926939,0.00042466,120]
[420717296,1776491320720,-151.0,0.00042466,120]
[420717297,1776491320800,-636.926939,0.00042466,120]
[420717298,1776491320883,-151.0,0.00042466,120]
[420717299,1776491320965,-636.926939,0.00042466,120]
[420717300,1776491321044,-151.0,0.00042466,120]
[420717301,1776491321122,-636.926939,0.00042466,120]
[420717302,1776491321202,-151.0,0.00042466,120]
[420717303,1776491321286,-636.926939,0.00042466,120]
[420717304,1776491321372,-151.0,0.00042466,120]
[420717305,1776491321456,-636.926939,0.00042466,120]
[420717306,1776491321545,-175.514767,0.00042466,120]
[420717307,1776491321631,-636.926939,0.00042466,120]
[420717308,1776491321717,-636.926939,0.00042466,120]
[420717309,1776491321802,-636.926939,0.00042466,120]
[420717310,1776491321892,-636.926939,0.00042466,120]
[420717311,1776491321983,-636.926947,0.00042466,120]
[420717312,1776491322069,-566.648709,0.00042466,120]
[420717313,1776491322156,-566.648709,0.00042466,120]
[420717314,1776491322241,-566.648709,0.00042466,120]
[420717315,1776491322327,-566.648709,0.00042466,120]
[420717316,1776491322404,-566.648709,0.00042466,120]
[420717317,1776491322480,-566.648709,0.00042466,120]
[420717318,1776491322559,-566.648709,0.00042466,120]
[420717319,1776491322639,-566.648709,0.00042466,120]
[420717320,1776491322722,-566.648709,0.00042466,120]
[420717321,1776491322801,-566.648709,0.00042466,120]
[420717322,1776491322880,-566.648709,0.00042466,120]
[420717323,1776491322958,-566.648709,0.00042466,120]
[420717324,1776491323036,-566.648709,0.00042466,120]
[420717325,1776491323113,-566.648709,0.00042466,120]
[420717326,1776491323188,-566.648709,0.00042466,120]
[420717327,1776491323266,-566.648709,0.00042466,120]
[420717328,1776491323340,-566.648709,0.00042466,120]
[420717329,1776491323415,-566.648709,0.00042466,120]
[420717330,1776491323489,-566.648709,0.00042466,120]
[420717331,1776491323568,-566.648705,0.00042466,120]
[420717332,1776491323647,-151.0,0.00042466,120]
[420717333,1776491323727,-151.0,0.00042466,120]
[420717334,1776491323804,-151.0,0.00042466,120]
[420717335,1776491323884,-151.462092,0.00042466,120]
[420717336,1776491323963,-151.0,0.00042466,120]
[420717337,1776491324043,-151.0,0.00042466,120]
[420717338,1776491324120,-151.0,0.00042466,120]
[420717339,1776491324194,-151.0,0.00042466,120]
[420717340,1776491324269,-151.0,0.00042466,120]
[420717341,1776491324345,-151.0,0.00042466,120]
[420717342,1776491324422,-151.0,0.00042466,120]
[420717343,1776491324498,-151.0,0.00042466,120]
[420717344,1776491324578,-151.0,0.00042466,120]
[420717345,1776491324657,-201.964834,0.00042466,120]
[420717346,1776491324736,-439.763631,0.00042466,120]
[420717347,1776491324816,-439.763631,0.00042466,120]
[420717348,1776491324897,-439.763631,0.00042466,120]
[420717349,1776491324979,-439.763631,0.00042466,120]
[420717350,1776491325057,-439.763631,0.00042466,120]
[420717351,1776491325134,-439.763631,0.00042466,120]
[420717352,1776491325212,-439.763631,0.00042466,120]
[420717353,1776491325288,-439.763631,0.00042466,120]
[420717354,1776491325366,-439.763631,0.00042466,120]
[420717355,1776491325442,-439.763631,0.00042466,120]
[420717356,1776491325520,-439.763631,0.00042466,120]
[420717357,1776491325600,-439.763631,0.00042466,120]
[420717358,1776491325680,-439.763631,0.00042466,120]
[420717359,1776491325760,-439.763631,0.00042466,120]
[420717360,1776491325840,-439.763631,0.00042466,120]
[420717361,1776491325919,-439.763631,0.00042466,120]
[420717362,1776491325998,-439.763631,0.00042466,120]
[420717363,1776491326076,-439.763631,0.00042466,120]
[420717364,1776491326154,-439.763631,0.00042466,120]
[420717365,1776491326231,-439.763637,0.00042466,120]
[420717366,1776491326309,-160.369616,0.00042466,120]
[420717367,1776491326385,-151.977503,0.00042466,120]
[420717368,1776491326466,-158.26397,0.00042466,120]
[420717369,1776491326544,-151.0,0.00042466,120]
[420717370,1776491326623,-151.0,0.00042466,120]
[420717371,1776491326702,-151.0,0.00042466,120]
[420717372,1776491326780,-151.0,0.00042466,120]
[420717373,1776491326859,-151.0,0.00042466,120]
[420717374,1776491326937,-151.0,0.00042466,120]
[420717375,1776491327015,-151.0,0.00042466,120]
[420717376,1776491327096,-151.0,0.00042466,120]
[420717377,1776491327174,-151.0,0.00042466,120]
[420717378,1776491327561,-151.0,0.00042466,120]
[420717379,1776491327643,-164.830263,0.00042466,120]
[420717380,1776491327725,-153.258991,0.00042466,120]
[420717381,1776491327803,-151.0,0.00042466,120]
[420717382,1776491327882,-151.0,0.00042466,120]
[420717383,1776491327963,-151.0,0.00042466,120]
[420717384,1776491328043,-151.0,0.00042466,120]
[420717385,1776491328123,-151.0,0.00042466,120]
[420717386,1776491328200,-151.0,0.00042466,120]
[420717387,1776491328278,-151.0,0.00042466,120]
[420717388,1776491328355,-151.0,0.00042466,120]
[420717389,1776491328433,-295.412957,0.00042466,120]
[420717390,1776491328512,-151.0,0.00042466,120]
[420717391,1776491328591,-151.0,0.00042466,120]
[420717392,1776491328683,-151.0,0.00042466,120]
[420717393,1776491328767,-151.0,0.00042466,120]
[420717394,1776491328850,-151.0,0.00042466,120]
[420717395,1776491328932,-151.0,0.00042466,120]
[420717396,1776491329010,-151.0,0.00042466,120]
[420717397,1776491329087,-151.0,0.00042466,120]
[420717398,1776491329163,-151.0,0.00042466,120]
[420717399,1776491329239,-211.418145,0.00042466,120]
[420717400,1776491329523,-211.838004,0.00042466,120]
[420717401,1776491329604,-211.838004,0.00042466,120]
[420717402,1776491329685,-211.838004,0.00042466,120]
[420717403,1776491329763,-211.838004,0.00042466,120]
[420717404,1776491329843,-211.838004,0.00042466,120]
[420717405,1776491329921,-211.838004,0.00042466,120]
[420717406,1776491329999,-211.838004,0.00042466,120]
[420717407,1776491330077,-211.838004,0.00042466,120]
[420717408,1776491330159,-211.838004,0.00042466,120]
[420717409,1776491330240,-211.838004,0.00042466,120]
[420717410,1776491330322,-211.838004,0.00042466,120]
[420717411,1776491330403,-211.838004,0.00042466,120]
[420717412,1776491330485,-211.838004,0.00042466,120]
[420717413,1776491330568,-211.838004,0.00042466,120]
[420717414,1776491330652,-157.346682,0.00042466,120]
[420717415,1776491330736,-211.838004,0.00042466,120]
[420717416,1776491330819,-211.838004,0.00042466,120]
[420717417,1776491330903,-211.838004,0.00042466,120]
[420717418,1776491330989,-211.838004,0.00042466,120]
[420717419,1776491331071,-211.838004,0.00042466,120]
[420717420,1776491331150,-211.837997,0.00042466,120]
[420717421,1776491331229,-151.0,0.00042466,120]
[420717422,1776491331305,-151.0,0.00042466,120]
[420717423,1776491331383,-151.0,0.00042466,120]
[420717424,1776491331460,-151.0,0.00042466,120]
[420717425,1776491331542,-157.18273,0.00042466,120]
[420717426,1776491331621,-151.0,0.00042466,120]
[420717427,1776491331698,-151.0,0.00042466,120]
[420717428,1776491331777,-151.0,0.00042466,120]
[420717429,1776491331856,-151.0,0.00042466,120]
[420717430,1776491331936,-151.0,0.00042466,120]
[420717431,1776491332015,-151.0,0.00042466,120]
[420717432,1776491332091,-151.0,0.00042466,120]
[420717433,1776491332169,-151.0,0.00042466,120]
[420717434,1776491332248,-208.402068,0.00042466,120]
[420717435,1776491332324,-151.0,0.00042466,120]
[420717436,1776491332402,-151.0,0.00042466,120]
[420717437,1776491332479,-151.0,0.00042466,120]
[420717438,1776491332558,-151.0,0.00042466,120]
[420717439,1776491332641,-151.0,0.00042466,120]
[420717440,1776491332724,-188.0,0.00042466,120]
[420717441,1776491332806,-151.0,0.00042466,120]
[420717442,1776491332885,-151.0,0.00042466,120]
[420717443,1776491332966,-241.360725,0.00042466,120]
[420717444,1776491333045,-151.0,0.00042466,120]
[420717445,1776491333122,-151.0,0.00042466,120]
[420717446,1776491333199,-151.0,0.00042466,120]
[420717447,1776491333277,-300.741564,0.00042466,120]
[420717448,1776491333354,-151.0,0.00042466,120]
[420717449,1776491333433,-151.0,0.00042466,120]
[420717450,1776491333512,-151.0,0.00042466,120]
[420717451,1776491333593,-298.253628,0.00042466,120]
[420717452,1776491333672,-151.0,0.00042466,120]
[420717453,1776491333746,-151.0,0.00042466,120]
[420717454,1776491333823,-151.0,0.00042466,120]
[420717455,1776491333901,-151.0,0.00042466,120]
[420717456,1776491333981,-151.0,0.00042466,120]
[420717457,1776491334063,-197.101028,0.00042466,120]
[420717458,1776491334140,-152.430699,0.00042466,120]
[420717459,1776491334214,-151.0,0.00042466,120]
[420717460,1776491334289,-151.0,0.00042466,120]
[420717461,1776491334366,-156.241628,0.00042466,120]
[420717463,1776491334442,-151.0,0.00042466,120]
[420717464,1776491334520,-151.0,0.00042466,120]
[420717465,1776491334599,-151.0,0.00042466,120]
[420717466,1776491334676,-151.0,0.00042466,120]
[420717467,1776491334758,-151.0,0.00042466,120]
[420717468,1776491334839,-151.0,0.00042466,120]
[420717469,1776491334919,-151.0,0.00042466,120]
[420717470,1776491334997,-151.0,0.00042466,120]
[420717471,1776491335078,-151.0,0.00042466,120]
[420717472,1776491335157,-151.0,0.00042466,120]
[420717473,1776491335235,-151.0,0.00042466,120]
[420717474,1776491335310,-151.0,0.00042466,120]
[420717475,1776491335386,-151.0,0.00042466,120]
[420717476,1776491335474,-151.0,0.00042466,120]
[420717477,1776491335555,-151.0,0.00042466,120]
[420717478,1776491335635,-151.0,0.00042466,120]
[420717479,1776491335714,-151.0,0.00042466,120]
[420717480,1776491335793,-216.832229,0.00042466,120]
[420717481,1776491335870,-151.0,0.00042466,120]
[420717482,1776491335951,-151.0,0.00042466,120]
[420717483,1776491336538,-151.0,0.00042466,120]
[420717484,1776491336618,-151.0,0.00042466,120]
[420717485,1776491336699,-151.0,0.00042466,120]
[420717486,1776491336776,-151.192071,0.00042466,120]
[420717487,1776491336852,-151.0,0.00042466,120]